bitfinex-derivatives/quotes_SOLF0:USTF0_20250905
["timestamp","ask_amount","ask_price","bid_price","bid_amount"]
[1757095367412,4.941,202.31,202.28,10.27166669]
[1757095368017,4.941,202.31,202.28,8.08]
[1757095368217,7.13266669,202.31,202.26,10.04166669]
[1757095368413,4.941,202.29,202.26,7.85]
[1757095368620,4.941,202.29,202.13,69.2573]
[1757095368621,2.7,202.28,202.22,10.04166669]
[1757095368920,2.19166669,202.3,202.22,10.04166669]
[1757095371618,2.19166669,202.3,202.24,2.19166669]
[1757095373416,7.649,202.31,202.15,16.48]
[1757095373417,4.949,202.31,202.27,2.19166669]
[1757095373626,2.7,202.35,202.3,7.85]
[1757095373819,2.7,202.35,202.29,10.04166669]
[1757095374518,7.649,202.35,202.29,10.04166669]
[1757095376320,7.14066669,202.38,202.31,2.19166669]
[1757095376524,7.14066669,202.38,202.32,2.19166669]
[1757095376723,7.14066669,202.38,202.31,10.04166669]
[1757095377424,4.949,202.38,202.34,7.85]
[1757095377624,4.949,202.38,202.33,2.19166669]
[1757095378322,4.949,202.38,202.34,7.85]
[1757095378924,7.649,202.38,202.34,7.85]
[1757095379326,9.84066669,202.38,202.32,2.19166669]
[1757095379528,2.7,202.33,202.29,7.85]
[1757095379726,2.7,202.33,202.28,7.85]
[1757095379930,9.84066669,202.36,202.29,2.19166669]
[1757095380524,4.949,202.36,202.33,2.19166669]
[1757095380726,4.949,202.36,202.34,7.85]
[1757095381727,4.949,202.37,202.34,7.85]
[1757095382227,7.14066669,202.36,202.19,4.15787238]
[1757095382525,2.7,202.33,202.27,2.19166669]
[1757095382720,2.7,202.29,202.23,2.19166669]
[1757095384824,2.7,202.29,202.22,10.04166669]
[1757095385325,2.19166669,202.24,202.2,7.85]
[1757095385525,4.89166669,202.25,202.2,7.85]
[1757095386227,4.89166669,202.25,202.13,32.1]
[1757095386228,2.19166669,202.25,202.18,7.85]
[1757095386426,2.19166669,202.25,202.2,7.85]
[1757095386630,2.19166669,202.25,202.19,2.19166669]
[1757095387030,2.19166669,202.26,202.2,7.85]
[1757095390426,4.89166669,202.26,202.2,7.85]
[1757095390631,2.19166669,202.24,202.18,2.19166669]
[1757095390835,4.89166669,202.24,202.18,2.19166669]
[1757095391030,4.89166669,202.24,202.16,10.04166669]
[1757095391427,2.19166669,202.2,202.16,7.85]
[1757095391731,7.649,202.24,202.09,110.88560295]
[1757095391732,2.19166669,202.22,202.15,7.85]
[1757095392428,2.19166669,202.22,202.09,110.88560295]
[1757095392629,318.52,202.39,202.04,4.4541]
[1757095392630,7.14066669,202.19,202.11,2.19166669]
[1757095393033,2.19166669,202.16,202.1,10.04166669]
[1757095393230,4.949,202.19,202.11,7.85]
[1757095393434,4.949,202.18,202.12,2.19166669]
[1757095394036,4.949,202.18,202.14,2.19166669]
[1757095394338,2.7,202.21,202.17,7.85]
[1757095395040,7.649,202.21,202.17,7.85]
[1757095395441,4.949,202.24,202.18,2.19166669]
[1757095395636,7.14066669,202.23,202.16,7.85]
[1757095395839,2.7,202.22,202.15,2.19166669]
[1757095396038,7.649,202.22,202.15,2.19166669]
[1757095396241,7.649,202.22,202.15,10.04166669]
[1757095396445,2.19166669,202.25,202.17,2.19166669]
[1757095396743,2.19166669,202.25,202.17,10.04166669]
[1757095397145,4.949,202.24,202.17,10.04166669]
[1757095398041,4.949,202.24,202.19,2.19166669]
[1757095398236,4.949,202.24,202.2,7.85]
[1757095398441,7.659,202.24,202.2,7.85]
[1757095399643,4.949,202.24,202.19,2.19166669]
[1757095399845,4.949,202.24,202.2,7.41]
[1757095400147,7.659,202.24,202.2,7.41]
[1757095404247,4.949,202.24,202.17,2.19166669]
[1757095404450,2.19166669,202.21,202.15,9.60166669]
[1757095408654,7.14066669,202.21,202.16,7.41]
[1757095408848,2.19166669,202.21,202.15,2.19166669]
[1757095409152,2.19166669,202.21,202.09,7.41]
[1757095409352,2.19166669,202.21,202.15,9.60166669]
[1757095409648,4.949,202.19,202.02,2.19166669]
[1757095409849,2.19166669,202.12,202.06,7.41]
[1757095410047,4.89166669,202.1,202.03,2.19166669]
[1757095410252,2.5132782,202.09,202.03,2.19166669]
[1757095410448,2.19166669,202.08,202.02,7.41]
[1757095410649,2.5132782,202.07,202.02,7.41]
[1757095410947,2.5132782,202.06,201.96,7.41]
[1757095411143,2.19166669,202.08,201.96,7.41]
[1757095411144,2.5132782,202.05,201.96,7.41]
[1757095411348,4.949,202.07,202.01,2.19166669]
[1757095411555,2.50956737,202.06,202.01,2.19166669]
[1757095411761,2.50956737,202.05,202.01,2.19166669]
[1757095411964,4.949,202.07,202.01,2.19166669]
[1757095412261,8.65117549,202.06,202.02,7.41]
[1757095412464,2.50935557,202.05,202.02,7.41]
[1757095412666,2.50935557,202.04,202.02,7.41]
[1757095412863,2.50935557,202.03,202.02,7.41]
[1757095413061,2.50935557,202.03,201.92,12.1]
[1757095413062,4.949,202.06,202.01,2.19166669]
[1757095413257,7.45659424,202.05,202.01,2.19166669]
[1757095413463,4.949,202.05,202.01,2.19166669]
[1757095414063,4.949,202.05,202.02,7.41]
[1757095414265,2.50495893,202.04,202.02,7.41]
[1757095414567,7.14066669,202.05,202.02,7.41]
[1757095414861,2.50489281,202.04,202.02,7.41]
[1757095415059,7.14066669,202.05,202.02,7.41]
[1757095415261,2.50548759,202.04,202.02,7.41]
[1757095415562,7.14066669,202.05,202.02,7.41]
[1757095415765,2.50411259,202.04,202.02,7.41]
[1757095416065,7.14066669,202.05,202.02,7.41]
[1757095416265,2.50411259,202.04,202.02,7.41]
[1757095416467,7.14066669,202.05,202.02,7.41]
[1757095416668,2.50279642,202.04,202.02,7.41]
[1757095416868,4.949,202.07,202.02,2.19166669]
[1757095417061,2.5036599,202.06,201.94,7.41]
[1757095417261,2.5036599,202.05,202.03,7.41]
[1757095417460,4.949,202.07,202.03,7.41]
[1757095417664,2.50254343,202.06,202.03,7.41]
[1757095417865,2.50254343,202.05,202.03,7.41]
[1757095418066,4.949,202.07,202.03,7.41]
[1757095418270,2.50254343,202.06,202.03,7.41]
[1757095418465,2.50254343,202.05,202.03,7.41]
[1757095418664,4.949,202.07,202.03,7.41]
[1757095418968,2.50155649,202.06,202.03,7.41]
[1757095419170,2.50155649,202.05,202.01,7.41]
[1757095419369,2.50155649,202.04,202.01,7.41]
[1757095419568,2.5007107,202.03,202.01,7.41]
[1757095419769,4.89166669,202.06,202.01,7.41]
[1757095419968,2.50078224,202.05,201.99,2.19166669]
[1757095420272,2.50078224,202.04,201.99,2.19166669]
[1757095420464,2.19166669,202.06,201.99,9.60166669]
[1757095420664,2.50028483,202.05,202.02,7.41]
[1757095420860,2.50028483,202.04,202.02,7.41]
[1757095421067,7.14066669,202.08,201.93,122.6456]
[1757095421263,2.50171547,202.07,202.03,2.19166669]
[1757095421468,2.50171547,202.06,202.04,7.41]
[1757095421668,2.50171547,202.05,202.04,7.41]
[1757095421867,2.50171547,202.07,202.04,7.41]
[1757095422173,2.50171547,202.06,202.04,7.41]
[1757095422367,2.50171547,202.05,202.04,7.41]
[1757095422673,2.19166669,202.1,202.03,9.60166669]
[1757095422874,2.50388118,202.09,202.03,7.41]
[1757095423173,2.50388118,202.08,202.04,9.60166669]
[1757095423371,2.50388118,202.07,202.05,7.41]
[1757095423569,2.50388118,202.06,202.05,7.41]
[1757095423767,2.50388118,202.11,202.05,7.41]
[1757095423968,2.50388118,202.1,202.01,3.43069494]
[1757095424175,2.50388118,202.09,202.02,7.41]
[1757095424467,2.50388118,202.08,202.04,3.43069494]
[1757095424672,2.50388118,202.07,202.05,7.41]
[1757095424869,4.949,202.12,202.05,7.41]
[1757095425075,2.50653948,202.11,202.05,7.41]
[1757095425368,4.949,202.12,202.04,3.43069494]
[1757095425369,2.50653948,202.1,202.04,3.43069494]
[1757095425667,2.50653948,202.09,202.05,7.41]
[1757095425873,2.50653948,202.08,202.04,3.43069494]
[1757095426067,2.50653948,202.07,202.05,7.41]
[1757095426269,4.949,202.12,202.05,7.41]
[1757095426572,3.76702103,202.11,202.05,7.41]
[1757095426763,3.76702103,202.11,202.04,3.43069494]
[1757095426764,2.50944851,202.1,202.04,3.43069494]
[1757095426971,2.50944851,202.09,202.05,7.41]
[1757095427170,2.50944851,202.08,202.05,7.41]
[1757095427373,3.43069494,202.17,202.05,7.41]
[1757095427374,4.949,202.16,202.05,7.41]
[1757095427569,4.949,202.14,202.05,7.41]
[1757095427777,4.949,202.12,202.05,7.41]
[1757095427976,2.51163228,202.11,202.05,10.84069494]
[1757095428171,4.949,202.12,202.06,7.56]
[1757095428172,2.51163228,202.1,202.06,7.56]
[1757095428377,2.51163228,202.09,202.06,7.56]
[1757095428571,2.51163228,202.08,202.06,7.56]
[1757095428767,2.51163228,202.07,202.06,7.56]
[1757095428967,7.46063228,202.12,202.06,7.56]
[1757095429172,3.77061034,202.11,202.05,3.43069494]
[1757095429367,2.51163228,202.1,202.05,3.43069494]
[1757095429573,2.51163228,202.09,202.06,7.56]
[1757095429772,2.51163228,202.08,202.06,7.56]
[1757095430070,2.51163228,202.07,202.06,7.56]
[1757095430275,7.46063228,202.12,202.06,7.56]
[1757095430478,3.77120016,202.11,202.06,7.56]
[1757095430674,2.51163228,202.1,202.05,3.43069494]
[1757095430880,2.51163228,202.09,202.06,7.56]
[1757095431079,2.51163228,202.08,202.05,3.43069494]
[1757095431278,2.51163228,202.07,202.06,7.56]
[1757095431472,2.51879538,202.07,202.06,7.56]
[1757095431775,4.949,202.12,202.07,7.56]
[1757095431976,4.949,202.12,202.11,7.56]
[1757095432173,4.949,202.18,202.11,7.56]
[1757095432371,4.949,202.16,202.1,10.99069494]
[1757095432569,4.949,202.14,202.11,7.56]
[1757095432872,2.73,202.19,202.11,7.56]
[1757095433069,1.26075184,202.18,202.14,7.56]
[1757095433273,1.26075184,202.17,202.13,3.43069494]
[1757095433471,1.26075184,202.16,202.13,3.43069494]
[1757095433684,5.24,202.22,202.14,7.56]
[1757095433972,1.26150126,202.21,202.14,7.56]
[1757095434177,1.26150126,202.2,202.14,7.56]
[1757095434379,1.26150126,202.19,202.13,10.99069494]
[1757095434580,1.26150126,202.18,202.14,7.56]
[1757095434779,5.24,202.22,202.13,3.43069494]
[1757095434780,1.26150126,202.17,202.13,3.43069494]
[1757095434980,5.24,202.22,202.13,10.99069494]
[1757095435379,1.26193224,202.21,202.13,10.99069494]
[1757095435580,1.26193224,202.2,202.13,10.99069494]
[1757095435769,1.26193224,202.19,202.14,7.56]
[1757095435976,35.56,202.24,202.17,7.56]
[1757095436174,1.2622974,202.23,202.17,7.56]
[1757095436380,1.2622974,202.22,202.16,3.43069494]
[1757095436578,1.2622974,202.21,202.16,3.43069494]
[1757095436779,10.189,202.26,202.17,7.56]
[1757095436973,1.26264235,202.25,202.17,7.56]
[1757095437177,1.26264235,202.24,202.17,7.56]
[1757095437376,10.189,202.26,202.17,7.56]
[1757095437377,1.26264235,202.23,202.17,7.56]
[1757095437577,1.26264235,202.22,202.16,3.43069494]
[1757095437778,1.26264235,202.21,202.17,7.56]
[1757095437981,10.189,202.26,202.17,7.56]
[1757095438173,1.26254347,202.25,202.2,7.56]
[1757095438374,1.26254347,202.24,202.2,7.56]
[1757095438575,1.26254347,202.23,202.2,7.56]
[1757095438779,4.949,202.28,202.22,3.43069494]
[1757095438978,4.949,202.26,202.22,3.43069494]
[1757095439278,5.24,202.3,202.23,7.56]
[1757095439471,1.26256068,202.29,202.25,3.43069494]
[1757095439678,5.24,202.34,202.26,7.56]
[1757095439883,1.26296997,202.33,202.26,7.56]
[1757095440079,1.26296997,202.32,202.26,7.56]
[1757095440280,5.24,202.3,202.26,7.56]
[1757095440580,10.189,202.34,202.25,10.99069494]
[1757095440777,6.21173289,202.33,202.25,10.99069494]
[1757095440978,1.26273289,202.32,202.25,10.99069494]
[1757095443688,2.47696203,202.31,202.25,10.99069494]
[1757095443885,2.47696203,202.3,202.26,7.56]
[1757095444080,2.47696203,202.29,202.26,7.56]
[1757095444284,4.949,202.33,202.26,7.56]
[1757095444483,8.68568285,202.32,202.26,7.56]
[1757095444786,2.47593401,202.31,202.25,10.99069494]
[1757095444986,2.47593401,202.3,202.25,3.43069494]
[1757095445184,4.949,202.32,202.25,10.99069494]
[1757095445384,2.47531278,202.31,202.26,7.56]
[1757095445586,2.47531278,202.3,202.29,7.56]
[1757095445786,2.47531278,202.35,202.29,7.56]
[1757095446087,7.16667445,202.34,202.24,7.56]
[1757095446287,5.24,202.32,202.24,7.56]
[1757095446588,5.24,202.3,202.2,3.43069494]
[1757095446786,3.73597951,202.29,202.2,3.43069494]
[1757095446985,5.24,202.3,202.2,3.43069494]
[1757095446986,3.73597951,202.28,202.2,3.43069494]
[1757095447287,2.47531278,202.27,202.2,3.43069494]
[1757095447489,2.47531278,202.26,202.2,3.43069494]
[1757095447678,5.24,202.3,202.21,7.56]
[1757095447679,2.47531278,202.25,202.21,7.56]
[1757095447883,5.24,202.3,202.21,7.56]
[1757095448085,3.73299287,202.29,202.21,7.56]
[1757095448287,3.73299287,202.28,202.21,7.56]
[1757095448586,2.47352243,202.27,202.21,7.56]
[1757095448777,2.47352243,202.26,202.2,10.99069494]
[1757095448976,2.47352243,202.25,202.2,3.43069494]
[1757095449189,5.24,202.28,202.21,7.56]
[1757095449388,2.47337909,202.27,202.21,7.56]
[1757095449577,2.47337909,202.26,202.2,10.99069494]
[1757095449783,2.47337909,202.25,202.21,7.56]
[1757095449982,5.24,202.28,202.2,3.43069494]
[1757095449983,2.47337909,202.24,202.2,3.43069494]
[1757095450189,5.24,202.28,202.21,7.56]
[1757095450488,2.47289861,202.27,202.21,7.56]
[1757095450689,2.47289861,202.26,202.2,10.99069494]
[1757095450989,2.47289861,202.25,202.21,7.56]
[1757095451186,10.189,202.28,202.21,7.56]
[1757095451386,2.4724394,202.27,202.21,7.56]
[1757095451690,2.4724394,202.26,202.2,10.99069494]
[1757095451984,5.24,202.24,202.17,3.43069494]
[1757095452189,2.47201566,202.23,202.17,10.99069494]
[1757095452487,5.24,202.24,202.17,10.99069494]
[1757095452687,2.47160872,202.23,202.17,10.99069494]
[1757095452883,5.24,202.24,202.17,10.99069494]
[1757095453084,2.47160872,202.23,202.17,10.99069494]
[1757095453387,5.24,202.24,202.17,10.99069494]
[1757095453587,2.47130629,202.23,202.17,10.99069494]
[1757095453788,5.24,202.24,202.18,7.56]
[1757095453986,7.7112052,202.23,202.18,7.56]
[1757095454187,5.24,202.23,202.17,10.99069494]
[1757095455088,5.24,202.28,202.21,7.56]
[1757095455388,2.47124799,202.27,202.21,7.56]
[1757095455584,2.47119629,202.26,202.21,7.56]
[1757095455888,2.47119629,202.25,202.21,7.56]
[1757095456089,5.24,202.28,202.2,10.99069494]
[1757095456389,2.47119629,202.27,202.2,10.99069494]
[1757095456578,2.47119629,202.26,202.2,10.99069494]
[1757095456783,2.47119629,202.25,202.2,3.43069494]
[1757095456981,5.24,202.28,202.21,7.56]
[1757095457182,2.47131828,202.27,202.21,7.56]
[1757095457387,2.47131828,202.26,202.2,3.43069494]
[1757095457588,2.47131828,202.25,202.21,7.56]
[1757095457784,5.24,202.28,202.21,7.56]
[1757095457984,2.47137394,202.27,202.21,7.56]
[1757095458192,2.47137394,202.26,202.21,7.78]
[1757095458386,2.47137394,202.26,202.2,3.43069494]
[1757095458889,5.24,202.28,202.2,11.21069494]
[1757095459990,2.47220607,202.27,202.2,11.21069494]
[1757095460182,2.47220607,202.26,202.2,11.21069494]
[1757095460382,2.47220607,202.25,202.17,3.43069494]
[1757095460588,6.468616,202.24,202.16,7.78]
[1757095460784,2.47220607,202.23,202.16,7.78]
[1757095461692,1.25889482,202.22,202.16,7.78]
[1757095461893,5.21,202.2,202.16,7.78]
[1757095462087,2.47220607,202.19,202.12,7.78]
[1757095462286,2.47220607,202.18,202.12,7.78]
[1757095462487,5.21,202.21,202.12,7.78]
[1757095462687,2.47444407,202.2,202.12,7.78]
[1757095462988,2.47444407,202.19,202.12,7.78]
[1757095463188,2.47444407,202.18,202.12,7.78]
[1757095463388,5.21,202.21,202.12,7.78]
[1757095463593,3.73500772,202.2,202.12,7.78]
[1757095463792,2.47530175,202.19,202.12,7.78]
[1757095463984,5.21,202.21,202.12,7.78]
[1757095463985,2.47530175,202.18,202.12,7.78]
[1757095464184,2.47530175,202.17,202.11,113.94366475]
[1757095464388,5.21,202.21,202.12,7.78]
[1757095464694,3.73644035,202.2,202.12,7.78]
[1757095464898,2.47625466,202.19,202.12,7.78]
[1757095465187,2.47625466,202.18,202.12,7.78]
[1757095465389,10.189,202.25,202.17,3.43069494]
[1757095465596,3.73849337,202.24,202.18,7.78]
[1757095465794,3.73849337,202.23,202.18,7.78]
[1757095465994,3.73849337,202.22,202.18,7.78]
[1757095466292,3.73919635,202.21,202.17,3.43069494]
[1757095466500,2.47760681,202.2,202.17,3.43069494]
[1757095466795,2.47760681,202.19,202.18,7.78]
[1757095466995,2.47760681,202.24,202.18,7.78]
[1757095467198,3.73914492,202.23,202.17,3.43069494]
[1757095467492,2.47760681,202.22,202.21,7.78]
[1757095468101,2.47760681,202.28,202.21,7.78]
[1757095468291,3.74036323,202.27,202.21,7.78]
[1757095468490,3.74036323,202.26,202.21,7.78]
[1757095468798,3.74036323,202.25,202.21,7.78]
[1757095469096,3.74036323,202.24,202.2,3.43069494]
[1757095469297,2.47760681,202.23,202.2,3.43069494]
[1757095469595,2.47760681,202.22,202.21,7.78]
[1757095469797,2.47760681,202.28,202.21,7.78]
[1757095469997,3.741546,202.27,202.21,7.78]
[1757095470196,8.981546,202.26,202.21,7.78]
[1757095470398,3.741546,202.25,202.2,3.43069494]
[1757095470697,3.741546,202.24,202.21,7.78]
[1757095470886,2.47760681,202.23,202.2,3.43069494]
[1757095471091,2.47760681,202.22,202.21,7.78]
[1757095471297,2.47760681,202.25,202.2,3.43069494]
[1757095471499,3.74260175,202.24,202.2,3.43069494]
[1757095471699,3.74260175,202.23,202.2,3.43069494]
[1757095472001,2.47760681,202.22,202.21,7.78]
[1757095472194,2.47760681,202.25,202.21,7.78]
[1757095472397,3.74310438,202.24,202.2,3.43069494]
[1757095472596,3.74310438,202.23,202.2,3.43069494]
[1757095472796,4.949,202.31,202.21,7.78]
[1757095472994,7.72,202.29,202.21,7.78]
[1757095473195,1.26576165,202.28,202.21,7.78]
[1757095473498,6.21476165,202.27,202.21,7.78]
[1757095473702,1.26576165,202.26,202.2,7.78]
[1757095473891,1.26576165,202.25,202.19,3.43069494]
[1757095474091,1.26576165,202.24,202.19,3.43069494]
[1757095474297,1.26686025,202.23,202.2,7.78]
[1757095474496,1.26664255,202.22,202.19,7.78]
[1757095474703,1.26651726,202.21,202.17,7.78]
[1757095474902,7.72,202.22,202.17,7.78]
[1757095475106,1.26651574,202.21,202.17,7.78]
[1757095475397,1.26651574,202.2,202.17,7.78]
[1757095475600,1.26651574,202.19,202.17,7.78]
[1757095475799,7.72,202.22,202.17,7.78]
[1757095476103,1.26712987,202.21,202.17,7.78]
[1757095476303,1.26712987,202.2,202.17,7.78]
[1757095476508,1.26712987,202.19,202.17,7.78]
[1757095476806,1.26712987,202.18,202.17,7.78]
[1757095477401,7.72,202.21,202.17,7.78]
[1757095477604,1.26712987,202.2,202.17,7.78]
[1757095480007,1.26712987,202.19,202.17,7.78]
[1757095480305,1.26895091,202.18,202.17,7.78]
[1757095483619,1.26895091,202.18,202.17,9.97275336]
[1757095484821,3.74114744,202.18,202.17,9.97275336]
[1757095485717,3.7412143,202.18,202.17,9.97275336]
[1757095488824,3.74238942,202.18,202.17,9.97275336]
[1757095489021,3.74238942,202.18,202.15,2.19275336]
[1757095489225,3.74238942,202.17,202.14,2.19275336]
[1757095489524,3.74238942,202.16,202.15,7.79]
[1757095490526,12.649,202.24,202.15,8.29]
[1757095490719,1.27036384,202.23,202.2,9.98275336]
[1757095490920,1.27036384,202.22,202.2,9.98275336]
[1757095491120,1.27036384,202.21,202.2,9.98275336]
[1757095492025,1.27036384,202.23,202.2,9.98275336]
[1757095493226,1.27036384,202.23,202.2,7.79]
[1757095496230,1.27036384,202.22,202.2,7.79]
[1757095496529,1.27036384,202.21,202.2,7.79]
[1757095496725,1.27036384,202.25,202.2,7.79]
[1757095497027,1.27036384,202.24,202.19,2.19275336]
[1757095497226,1.27036384,202.23,202.19,2.19275336]
[1757095497422,1.27036384,202.22,202.2,7.79]
[1757095497624,1.27036384,202.21,202.2,7.79]
[1757095498025,1.27036384,202.21,202.14,7.79]
[1757095498230,3.4631172,202.2,202.16,7.79]
[1757095498426,1.27036384,202.19,202.16,7.79]
[1757095498832,1.27036384,202.19,202.17,7.79]
[1757095499029,1.27036384,202.18,202.17,7.79]
[1757095499929,3.4631172,202.22,202.16,2.19275336]
[1757095500129,7.7,202.2,202.13,7.79]
[1757095500330,7.7,202.2,202.14,2.19275336]
[1757095500331,8.97036384,202.19,202.14,2.19275336]
[1757095500535,1.27036384,202.18,202.14,2.19275336]
[1757095500730,1.27036384,202.18,202.17,7.79]
[1757095500935,1.27036384,202.21,202.16,2.19275336]
[1757095501128,1.27036384,202.2,202.19,7.79]
[1757095501332,7.7,202.25,202.19,7.79]
[1757095501730,7.7,202.25,202.21,7.79]
[1757095501932,2.19275336,202.28,202.22,2.19275336]
[1757095502135,9.89275336,202.3,202.22,2.19275336]
[1757095502729,7.7,202.3,202.24,9.98275336]
[1757095503236,7.7,202.3,202.26,9.98275336]
[1757095503431,7.7,202.31,202.24,2.19275336]
[1757095503739,2.19275336,202.3,202.24,2.19275336]
[1757095504133,10.44330729,202.33,202.22,7.79]
[1757095504134,2.19275336,202.28,202.22,7.79]
[1757095506038,12.649,202.29,202.24,7.79]
[1757095506344,7.7,202.29,202.24,7.79]
[1757095506740,7.7,202.29,202.17,7.79]
[1757095507041,7.7,202.29,202.23,2.19275336]
[1757095512642,2.19275336,202.3,202.25,2.19275336]
[1757095512953,7.7,202.3,202.27,2.19275336]
[1757095513543,4.949,202.32,202.27,2.19275336]
[1757095514343,7.7,202.31,202.27,2.22770436]
[1757095514751,7.7,202.31,202.28,7.79]
[1757095516248,0.03526602,202.32,202.29,2.19275336]
[1757095516544,0.03526602,202.32,202.31,2.19275336]
[1757095516748,0.03526602,202.32,202.31,9.98275336]
[1757095519150,7.7,202.39,202.32,7.62]
[1757095519349,2.19275336,202.43,202.37,2.19275336]
[1757095519544,7.7,202.42,202.37,2.19275336]
[1757095519745,9.89275336,202.43,202.37,2.19275336]
[1757095520044,2.19275336,202.41,202.34,7.62]
[1757095520250,2.46211182,202.4,202.38,2.19275336]
[1757095520451,2.19275336,202.45,202.38,2.22526574]
[1757095520649,10.16050627,202.44,202.38,2.22526574]
[1757095520849,2.46050627,202.43,202.38,2.22526574]
[1757095521050,10.16050627,202.42,202.38,9.84526574]
[1757095521253,2.46050627,202.41,202.38,9.84526574]
[1757095521849,2.46050627,202.41,202.38,0.03251238]
[1757095522050,2.46050627,202.4,202.38,0.03251238]
[1757095522356,2.46050627,202.39,202.38,9.84526574]
[1757095525552,2.46050627,202.39,202.38,7.65251238]
[1757095525757,2.46050627,202.39,202.38,9.84526574]
[1757095526553,2.46050627,202.39,202.38,0.03251238]
[1757095526753,10.15050627,202.39,202.38,0.03251238]
[1757095527654,2.46050627,202.39,202.38,0.03251238]
[1757095528054,10.15050627,202.39,202.38,0.03251238]
[1757095529253,2.46050627,202.39,202.38,0.03251238]
[1757095530357,10.15050627,202.39,202.38,0.03251238]
[1757095530559,12.34325963,202.39,202.38,0.03251238]
[1757095531560,10.15050627,202.39,202.38,0.03251238]
[1757095532557,10.65050627,202.39,202.38,0.03251238]
[1757095532764,15.59950627,202.39,202.29,7.62]
[1757095532961,7.66,202.33,202.29,7.62]
[1757095533161,2.46050627,202.32,202.26,2.19275336]
[1757095533359,2.46050627,202.31,202.27,7.62]
[1757095533555,2.46050627,202.3,202.27,7.62]
[1757095533754,9.85275336,202.34,202.26,9.81275336]
[1757095533964,2.45031155,202.33,202.26,9.81275336]
[1757095534153,9.85275336,202.34,202.26,9.81275336]
[1757095534154,2.45031155,202.32,202.26,9.81275336]
[1757095534354,2.45031155,202.31,202.26,2.19275336]
[1757095534562,2.45031155,202.31,202.22,4.4502]
[1757095534563,2.45031155,202.3,202.28,2.19275336]
[1757095534863,9.85275336,202.34,202.28,2.19275336]
[1757095535065,10.11134232,202.33,202.28,9.81275336]
[1757095535364,2.45134232,202.32,202.31,7.62]
[1757095536156,2.45134232,202.32,202.31,9.81275336]
[1757095536562,0.03469859,202.34,202.31,2.19275336]
[1757095536763,2.453136,202.33,202.32,7.62]
[1757095537761,7.66,202.32,202.29,0.03167102]
[1757095537958,9.85275336,202.3,202.29,0.03167102]
[1757095538163,12.30588936,202.3,202.29,0.03167102]
[1757095541266,10.113136,202.3,202.29,0.03167102]
[1757095542662,2.453136,202.3,202.29,9.84442438]
[1757095543270,2.453136,202.3,202.29,10.34442438]
[1757095544573,2.453136,202.3,202.29,9.84442438]
[1757095545571,2.453136,202.3,202.29,7.65167102]
[1757095545766,2.453136,202.3,202.29,8.15167102]
[1757095545972,0.03469859,202.34,202.3,7.62]
[1757095546166,2.45788576,202.33,202.32,7.62]
[1757095549768,2.45788576,202.33,202.31,3.42166814]
[1757095549972,10.09788576,202.32,202.29,0.03167102]
[1757095550170,2.45788576,202.31,202.29,7.50167102]
[1757095550364,2.45788576,202.3,202.29,7.50167102]
[1757095551170,2.45788576,202.33,202.29,0.03167102]
[1757095551372,2.46550312,202.32,202.31,7.47]
[1757095558069,0.03469859,202.34,202.31,7.97]
[1757095558272,0.03469859,202.34,202.33,10.89166814]
[1757095559569,7.64,202.42,202.33,10.89166814]
[1757095559773,7.64,202.42,202.36,3.42166814]
[1757095560573,7.64,202.42,202.3,3.42166814]
[1757095560874,7.64,202.39,202.37,0.0314231]
[1757095562180,8.14,202.39,202.37,0.0314231]
[1757095563279,7.64,202.38,202.37,0.0314231]
[1757095565872,7.64,202.38,202.26,7.47]
[1757095565873,8.14,202.38,202.26,7.47]
[1757095566071,70.86333628,202.4,202.26,7.47]
[1757095566072,7.61,202.33,202.26,7.47]
[1757095569078,7.61,202.37,202.27,7.47]
[1757095569278,7.61,202.37,202.2,59.98166814]